Workbook

Sheet Instructions
A1: Read Instructin how to use this Income Tax Calculator
A2: 1 | B2: This is Maco Enable Book so please Enable macro & Content
A4: ਟੈਕਸ ਪ੍ਰ੍ਰਫਾਰਮਾ ਭਰਨ ਲਈ ਜਰਰੀ ਹਦਾਇਤਾਂ
A5: 1 | B5: ਅੇੈਕਸਲ 2010 ਜਾਂ ਇਸ ਤੋਂ ਉਪਰ ਦਾ ਆਫਿਸ ਦੀ ਵਰਤੋਂ ਕਰੌ
A6: 2 | B6: ਫਾਇਲ਼ ਖੁਲਣ ਤੇ Enabed Content And Enable Editing ਬਟਨ ਜੋ ਉਪਰ ਟੂਲਬਾਰ ਦੇ ਹੇਠਾ ਨਜ਼ਰ ਆਵੇਗਾ ਉਸ ਨੂੰ ਕਲਿੱਕ ਕਰੌ ਤਾਂ ਹੀ ਸਹੀ ਆਉਟਪੁੱਟ ਆਵੇਗੀ . ਜੇ ਅਜਿਹਾ ਕਰਨ ਤੋਂ ਰਹਿ ਗਿਆ ਤਾਂ ਫਾੲਲਿ ਨੂੰ ਦੁਬਾਰਾ ਬੰਦ ਕਰਕੇ ਉਪਨ ਕਰੋ
A7: 3 | B7: ਤਸੀ Fill Salary Details ਸੀਟ ਤੇ ਕਲਿੱਕ ਕਰਕੇ ਉਥੇ ਸਿਰਫ Grey Shaded ਖਾਨੇ ਹੀ ਭਰਨੇ ਹਨ
A8: 4 | B8: ਬੇਸਿਕ ਪੇਅ ਭਰੋ । ਗਰੇਡ ਪੇਅ ਖਾਲੀ ਛੱਡ ਦਿਉ ਜੇ ਲਾਗੂ ਨਹੀ ਹੁੰਦੀ ਹੈ
A9: 5 | B9: ਈ.ਪੀ.ਐਫ ਕੱਟਣਾ ਤਾਂ ਈਪੀ.ਐਫ ਵਿਚ Yes ਸਲੈਕਟ ਕਰੋ
A10: 6 | B10: ਤਰੱਕੀ ਦਾ ਮਹੀਨਾ ਸਿਲੈਕਟ ਕਰੋ। ਨਾਲ ਹੀ HRA ਰੇਟ ਵੀ ਸਿਲੈਕਟ ਕਰੋ
A11: 7 | B11: ਬੇਸਿਕ ਪੇਅ ਵਿਚ ਅਗਰ ਕਿਸੇ ਮਹੀਨੇ ਫਰਕ ਹੈ ਤੁਸੀ ਉਸ ਮਹੀਨਾ ਵਾਲੀ ਰੋਅ ਵਿਚ ਕਸਟਮ ਪੇ ਭੱਤੇ ਭਰ ਸਕਦੇ ਹੋ
A12: 8 | B12: ਇਸੇ ਤਰਾਂ ਕਟੋਤੀਆਂ ਸਿਲੈਕਰ ਕਰੋ , ਜੀਆਈ.ਅੇੈਸ ਸਿਲੈਕਟ ਕਰੋ, ਟੈਕਸ ਜਾਂ ਹੋਰ ਕੋਈ ਕੋਟਤੀ ਹੈ ਤਾਂ ਮਹੀਨੇ ਅਨੁਸਾਰ ਫਿੱਲ ਕਰੋ
A13: 9 | B13: ਕੁੱਲ ਤਨਖਾਹ ਚੈਕ ਕਰੋ। ਹੁਣ TAX PERMORMA ਸੀਟ ਤੇ ਜਾਉ
A14: 10 | B14: ਸਭ ਤੋਂ ਪਹਿਲਾ ਉਪਰ ਜੇ ਕਰ ਤੁਸੀ New TAX Regime ਵਿਚ ਆਉਦੇ ਹੋ ਤਾਂ Yes ਸਿਲੈਕਟ ਕਰੋ ਪੁਰਾਣੀ ਟੈਕਸ ਪ੍ਰਣਾਲੀ ਲਈ No ਸਿਲੈਕਟ ਕਰੋ
A15: 11 | B15: ਹੁਣ ਆਪਣੀ ਕੋਈ ਹੋਰ ਇਨਕਮ ਅਤੇ ਕਟੋਤੀਆਂ ਦਾਖਲ ਕੋਰ
A16: 12 | B16: ਲਾਸਟ ਵਿਚ ਤੁਸੀ ਪੀਡੀ.ਐਫ ਦੇ ਰੂਪ ਵਿਚ ਸੇਵ ਕਰ ਸਕਦੇ ਹੋ
A17: 13 | B17: ਤੁਸੀ ਕਿਸੇ ਤਰਾਂ ਦੇ ਸੁਝਾਅ ਅਤੇ ਫੀਡਬੈਕ ਲਈ ਈਮੇਲ abhi072011@gmail.com ਤੇ ਸਪੰਰਕ ਕਰ ਸਕਦੇ ਹੋ
A18: 14 | B18: ਇਸੇ ਤਰਾਂ ਦੇ ਹੋਰ ਸਾਫਟਵੇਅਰ ਫਾਰਮ ਅਦਿ ਪ੍ਰਾਪਤ ਕਰਨ ਲਈ ਸਾਡੀ ਵੈਬਸਾਇਟ ਨੂੰ ਵਿਿਜਟ ਕਰੋ
A19: 15 | B19: Subscribe Our Youtube Channel for Details Video
A20: 16 | B20: Follow Us On Facebook

Sheet FILL_SALARY_DETAIL
B1: Office Of : | E1: Principal Govt. Sr. Sec. School ----------
A2: Salary Statement : | D2: for | F2: FY | G2: 2025 | H2: =("-"&G2+1)+2000 -> -26 | I2: AY | J2: =G2+1 -> 2026 | K2: =H2-1 -> -27 | P2: PERIOD | Q2: From | T2: To
A3: Employee Name : | D3: Name | H3: Designation : | J3: Computer Faculty | Q3: 2025-04-01 | T3: =DATE(YEAR(Q3),MONTH(Q3)+12,DAY(Q3)-1) -> 2026-03-31
A4: Father's Name : | D4: Father Name | H4: Date of Birth : | J4: 1988-11-24 | L4: PAN No. : | N4: CNTTL0000 | P4: Pay in Pay Band | R4: 22190 | S4: Grade Pay | T4: 5000 | U4: EPF | V4: Yes
A5: Resi. Address : | D5: #5 Block Khanna Ludhiana | H5: Gender : | J5: Male | L5: Jan | M5: ←Select Increment Month
I6: HRA → | J6: 10
A7: Month | B7: Year | C7: Pay in Pay Band | D7: Grade Pay | E7: Basic Pay | F7: Total Basic Pay | G7: D.A. Rate | H7: D.A. | I7: H.R.A. | J7: R.A. | K7: No Spl All | L7: Med.All. | M7: Mob. All. | N7: Any Other All. | O7: Gross Salary | P7: G.P.F./C.P.F./E.P.F. | Q7: G.I.S. | R7: Income Tax | S7: Dev. Tax | T7: Other Ded. | U7: Total Ded. | V7: Net Pay
A8: Mar | B8: =$G$2 -> 2025 | C8: =R4 -> 22190 | D8: =T4 -> 5000 | E8: =SUM(C8:D8) -> 27190 | F8: =SUM(E8:E8) -> 27190 | G8: 1.81 | H8: =IF($R$5="Basic Pay",0,(ROUND(F8*G8,0))) -> 49214 | I8: =IF($R$5="Basic Pay",0,(ROUND(F8*$J$6%,0))) -> 2719 | J8: =IF(OR($R$5="Basic Pay",$J$7="No R.A."),0,(ROUND(F8*6%,0))) -> 1631 | K8: =IF($K$7="Spl. All.",400,0) -> 0 | L8: =IF($R$5="Basic Pay",0,500) -> 500 | M8: 300 | O8: =ROUND(IF($R$5="Basic Pay",C8,(F8+H8+I8+J8+K8+L8+M8)+N8),0) -> 81554 | P8: =IF($V$4="Yes",ROUND((1800),0),0) -> 1800 | Q8: 0 | R8: 2000 | S8: 200 | U8: =SUM(P8:T8) -> 4000 | V8: =O8-U8 -> 77554
A9: Apr | B9: =$G$2 -> 2025 | C9: =CEILING(IF(A9=$L$5,((E8*3%)+C8),C8),10) -> 22190 | D9: =D8 -> 5000 | E9: =SUM(C9:D9) -> 27190 | F9: 27190 | G9: 1.81 | H9: 49214 | I9: =IF($R$5="Basic Pay",0,(ROUND(F9*$J$6%,0))) -> 2719 | J9: 1631 | K9: =IF($K$7="Spl. All.",400,0) -> 0 | L9: 500 | M9: 300 | O9: 81554 | P9: =IF($V$4="Yes",ROUND((1800),0),0) -> 1800 | Q9: 0 | R9: 2000 | S9: 200 | U9: =SUM(P9:T9) -> 4000 | V9: =O9-U9 -> 77554
A10: May | B10: 2025 | C10: =CEILING(IF(A10=$L$5,((E9*3%)+C9),C9),10) -> 22190 | D10: =D9 -> 5000 | E10: 27190 | F10: 27190 | G10: 1.81 | H10: 49214 | I10: 2719 | J10: 1631 | K10: 0 | L10: 500 | M10: 300 | O10: 81554 | P10: 1800 | Q10: 0 | R10: 2000 | S10: 200 | U10: 4000 | V10: 77554
A11: Jun | B11: 2025 | C11: 22190 | D11: =D10 -> 5000 | E11: 27190 | F11: 27190 | G11: 1.81 | H11: 49214 | I11: 2719 | J11: 1631 | K11: 0 | L11: 500 | M11: 0 | O11: 81254 | P11: 1800 | Q11: 0 | R11: 2000 | S11: 200 | U11: 4000 | V11: 77254
A12: Jul | B12: 2025 | C12: 22190 | D12: =D11 -> 5000 | E12: 27190 | F12: 27190 | G12: 1.81 | H12: 49214 | I12: 2719 | J12: 1631 | K12: 0 | L12: 500 | M12: 300 | O12: 81554 | P12: 1800 | Q12: 0 | R12: 2000 | S12: 200 | U12: 4000 | V12: 77554
A13: Aug | B13: 2025 | C13: 22190 | D13: 5000 | E13: 27190 | F13: 27190 | G13: 1.81 | H13: 49214 | I13: 2719 | J13: 1631 | K13: 0 | L13: 500 | M13: 300 | O13: 81554 | P13: 1800 | Q13: 0 | R13: 2000 | S13: 200 | U13: 4000 | V13: 77554
A14: Sep | B14: 2025 | C14: 22190 | D14: 5000 | E14: 27190 | F14: 27190 | G14: 1.81 | H14: 49214 | I14: 2719 | J14: 1631 | K14: 0 | L14: 500 | M14: 300 | O14: 81554 | P14: 1800 | Q14: 0 | R14: 2000 | S14: 200 | U14: 4000 | V14: 77554
A15: Oct | B15: 2025 | C15: 22190 | D15: 5000 | E15: 27190 | F15: 27190 | G15: 1.81 | H15: 49214 | I15: 2719 | J15: 1631 | K15: 0 | L15: 500 | M15: 300 | O15: 81554 | P15: 1800 | Q15: 0 | R15: 2000 | S15: 200 | U15: 4000 | V15: 77554
A16: Nov | B16: 2025 | C16: 22190 | D16: 5000 | E16: 27190 | F16: 27190 | G16: 1.81 | H16: 49214 | I16: 2719 | J16: 1631 | K16: 0 | L16: 500 | M16: 300 | O16: 81554 | P16: 1800 | Q16: 0 | R16: 2000 | S16: 200 | U16: 4000 | V16: 77554
A17: Dec | B17: 2025 | C17: 22190 | D17: 5000 | E17: 27190 | F17: 27190 | G17: 1.81 | H17: 49214 | I17: 2719 | J17: 1631 | K17: 0 | L17: 500 | M17: 300 | O17: 81554 | P17: 1800 | Q17: 0 | R17: 2000 | S17: 200 | U17: 4000 | V17: 77554
A18: Jan | B18: =$G$2+1 -> 2026 | C18: 23010 | D18: 5000 | E18: 28010 | F18: 28010 | G18: 1.81 | H18: 50698 | I18: 2801 | J18: 1681 | K18: 0 | L18: 500 | M18: 300 | O18: 83990 | P18: 1800 | Q18: 0 | R18: 5000 | S18: 200 | U18: 7000 | V18: 76990
A19: Feb | B19: =$G$2+1 -> 2026 | C19: 23010 | D19: 5000 | E19: 28010 | F19: 28010 | G19: 1.81 | H19: 50698 | I19: 2801 | J19: 1681 | K19: 0 | L19: 500 | M19: 300 | O19: 83990 | P19: 1800 | Q19: 0 | R19: 5000 | S19: 200 | U19: 7000 | V19: 76990
A20: Arrear1 | U20: =SUM(P20:T20) -> 0 | V20: =O20-U20 -> 0
A21: Arrear2 | U21: 0 | V21: 0
A22: Arrear3 | U22: 0 | V22: 0
A23: Arrear4
C24: =SUM(C8:C23) -> 267920 | D24: =SUM(D8:D23) -> 60000 | E24: =SUM(E8:E23) -> 327920 | F24: =SUM(F8:F23) -> 327920 | H24: =SUM(H8:H23) -> 593536 | I24: 32792 | J24: 19672 | K24: 0 | L24: 6000 | M24: 3300 | N24: 0 | O24: 983220 | P24: 21600 | Q24: 0 | R24: 30000 | S24: 2400 | T24: 0 | U24: 54000 | V24: 929220
A25: Disclaimer : Although every care has been taken while preparing this IT Calculator, however the author & Teachershelp.in are not responsible for any discrepancy causing economic loss/legal dispute.
J28: www.teachershelp.in | T28: Signaure
A29: Note: Any Increment/difference in consecutive figures is shown in the red colour for your information purpose only.
I33: Gross Total Salary (including employer's 14% share of CPF)→ | P33: =IF($R$5="CPF",O24+Q33,0) -> 0 | Q33: =IF($R$5="CPF",(P24)/10*14) -> FALSE

Sheet TAX_PROFORMA
A1: PROFORMA FOR CALCULATING INCOME TAX
A2: Financial Year | D2: =FILL_SALARY_DETAIL!G2&"-"&FILL_SALARY_DETAIL!G2-1999 -> 2025-26 | F2: Assesment Year: | I2: =FILL_SALARY_DETAIL!J2&FILL_SALARY_DETAIL!K2 -> 2026-27
A3: Name Of Official : | D3: =FILL_SALARY_DETAIL!D3 -> Name | G3: Designation: | I3: =FILL_SALARY_DETAIL!J3 -> Computer Faculty
A4: Permanent Account No: | D4: =FILL_SALARY_DETAIL!N4 -> CNTTL0000 | G4: Date Of Birth: | I4: =FILL_SALARY_DETAIL!J4 -> 1988-11-24
A5: Residential Adress: | C5: =FILL_SALARY_DETAIL!D5 -> #5 Block Khanna Ludhiana | H5: Section 115BAC → | J5: No
A6: 1 | B6: Salary Income(Including all allowances &Perks etc.) | I6: Rs. | J6: =FILL_SALARY_DETAIL!O24 -> 983220
B7: (-)H.R.A.Exemptable | I7: Rs.
B8: (-)Standard Deduction (SD) | I8: Rs. | J8: =IF(J5="Yes",75000,50000) -> 50000
B9: (-)Interest Of House Building Advance | I9: Rs.
B10: (-)Mobile Allowance/Conveyance Allowance/ROP | G10: ROP | I10: Rs. | J10: =H10 -> 0
A11: 2 | B11: Net Salary Income | I11: Rs. | J11: =IF(J5="No",J6-J7-J8-J9-J10,J6-J8-H10) -> 933220
A12: 3 | B12: Professional Tax/Entertainment Tax u/s16 | I12: Rs. | J12: =IF(J5="No",FILL_SALARY_DETAIL!S24,0) -> 2400
A13: 4 | B13: GROSS SALARY INCOME(2-3)…………………………………………………………... | I13: Rs. | J13: =IF(J5="No",SUM(J11-J12),J11) -> 930820
A14: 5 | B14: Income From Other Sources
B15: (a)Income from House Property | I15: Rs.
B16: (b)Capital Gains | I16: Rs. | M16: Agri Income calc
B17: (c)Other Sources:UTI,Bank Interest,NSCs,Kissan Vikas Patras etc | I17: Rs.
B18: (d)Agriculture Income | I18: Rs. | M18: =J55 -> 770820 | N18: Deduction
A19: 6 | B19: Total Income(4+5)…………………………………………………………………………….. | I19: Rs. | J19: =SUM(J13:J18) -> 930820
A20: 7 | B20: Deduction (U/S 80C to 80 U) | E20: i) | F20: 80-C (Various Saving Investments & Deductions)(Max limit Rs.1.5 Lacs) | M20: =IF(M18<=250000,0,IF(M18<=500000,(M18-250000)*0.05,IF(M18<=1000000,(M18-500000)*0.2+12500,IF(M18>1000000,(M18-1000000)*0.3+112500)))) -> 66664 | N20: =IF(M18<=400000,0,IF(M18<=800000,(M18-400000)*0.05,IF(M18<=1200000,(M18-800000)*0.1+20000,IF(M18<=1600000,(M18-1200000)*0.15+60000,IF(M18<=2000000,(M18-1600000)*0.2+120000,IF(M18<=2400000,(M18-2000000)*0.25+200000,IF(M18>2400000,(M18-2400000)*0.3+300000))))))) -> 18541
B21: 1)GPF/EPF/VPF | G21: Rs. | H21: =FILL_SALARY_DETAIL!P24 -> 21600 | I21: Rs. | J21: =IF($J$5="No",IF(H21<=150000,H21,150000),0) -> 21600 | K21: Inc. | M21: 250000 | N21: 400000
B22: 2)P.P.F. | G22: Rs. | I22: Rs. | J22: =IF($J$5="No",IF(H22<=150000,H22,150000),0) -> 0 | K22: Inc. | M22: =J18+M21 -> 250000 | N22: =J18+N21 -> 400000
B23: 3)NSC's Purchased | G23: Rs. | I23: Rs. | J23: 0 | K23: Inc. | M23: Exemp Tax
B24: 4)Fixed Bank Deposits (5 year lock-in period) | G24: Rs. | I24: Rs. | J24: 0 | K24: Inc. | M24: =IF(M22<=250000,0,IF(M22<=500000,(M22-250000)*0.05,IF(M22<=1000000,(M22-500000)*0.2+12500,IF(M22>1000000,(M22-1000000)*0.3+112500,)))) -> 0 | N24: =IF(N22<=400000,0,IF(N22<=800000,(N22-400000)*0.05,IF(N22<=120000,(N22-800000)*0.1+20000,IF(N22<=1600000,(N22-1200000)*0.15+60000,IF(N22<=2000000,(N22-1600000)*0.2+120000,IF(N22<=2400000,(N22-2000000)*0.25+2000000,IF(N22>2400000,(N22-2000000)*0.3+3000000))))))) -> 0
B25: 5)Senior Citizens Saving Schemes (SCSS) | G25: Rs. | I25: Rs. | J25: 0 | K25: Inc. | M25: =M20-M24 -> 66664 | N25: =N20-N24 -> 18541
B26: 6)Equity Linked Saving Schemes (ELSS) | G26: Rs. | I26: Rs. | J26: 0 | K26: Inc.
B27: 7)Life Insurance Premium | G27: Rs. | I27: Rs. | J27: 0 | K27: Inc.
B28: 8)Unit Linked Insurance Plans (ULIPs) | G28: Rs. | I28: Rs. | J28: 0 | K28: Inc.
B29: 9)School Fees Paid for Education of Children | G29: Rs. | I29: Rs. | J29: 0 | K29: Inc.
B30: 10)Group Insurance Scheme (GIS) | G30: Rs. | H30: =FILL_SALARY_DETAIL!Q24 -> 0 | I30: Rs. | J30: 0 | K30: Inc.
B31: 11)Principal Repayment of House Loan | G31: Rs. | H31: 150000 | I31: Rs. | J31: 150000 | K31: Inc.
B32: 12)Any Other(Show here→ | D32: SMY | G32: Rs. | I32: Rs. | J32: 0 | K32: Inc.
A33: ii) | B33: 80-CCC | G33: Rs. | I33: Rs. | J33: 0 | K33: Inc.
A34: iii) | B34: 80-CCCD1(A) | C34: NPS | D34: (Max.1,50,000) Employee's share | G34: Rs. | I34: Rs. | J34: 0 | K34: Inc.
A35: iv) | B35: 80-CCCD1(B) | C35: NPS | D35: (Max.50,000) Additional share | G35: Rs. | I35: Rs. | J35: =IF($J$5="No",IF(H35<=50000,H35,50000),0) -> 0 | K35: Exclu.
A36: v) | B36: 80-CCCD2 | C36: NPS | D36: (No Limit) Govt./Employer's share | G36: Rs. | I36: Rs. | J36: =IF($J$5="No",H36,0) -> 0 | K36: Exclu. | L36: Inc.= Including 80 C (1,50,000) limit
A37: vi) | B37: 80 CCG | C37: Rajiv Gandhi Equity Saving Scheme (RGESS) | G37: Rs. | I37: Rs. | J37: =IF($J$5="No",IF(H37<=25000,H37,25000),0) -> 0 | K37: Exclu.
A38: vii) | B38: 80 D | C38: (Premium paid for Medical Insurance) | F38: (Max.1,00,000) | G38: Rs. | H38: 10000 | I38: Rs. | J38: =IF($J$5="No",IF(H38<=100000,H38,100000),0) -> 10000 | K38: Exclu.
A39: viii) | B39: 80 DD | C39: (Medical Expenditure for a Handicapped Relative) | G39: Rs. | I39: Rs. | J39: =IF($J$5="No",IF(H39<=125000,H39,125000),0) -> 0 | K39: Exclu.
A40: ix) | B40: 80 DDB | C40: (Medical Expenditure on Self or Dependent Relative) | G40: Rs. | I40: Rs. | J40: =IF($J$5="No",IF(H40<=100000,H40,100000),0) -> 0 | K40: Exclu.
A41: x) | B41: 80 E | C41: (Interest on Education Loan for Higher Studies) | G41: Rs. | I41: Rs. | J41: =IF($J$5="No",H41,0) -> 0 | K41: Exclu.
A42: xi) | B42: 80 EE | C42: (Interest on Home Loan-First Time Buyers) | G42: Rs. | I42: Rs. | J42: =IF($J$5="No",IF(H42<=50000,H42,50000),0) -> 0 | K42: Exclu.
A43: xii) | B43: 80EEA | C43: (Interest on loan for house whose stamp duty < Rs. 45 lakhs) | G43: Rs. | I43: Rs. | J43: =IF($J$5="No",IF(H43<=150000,H43,150000),0) -> 0
A44: xiii) | B44: 80EEB | C44: (interest on loan taken for purchase of an electric vehicle) | G44: Rs. | I44: Rs. | J44: =IF($J$5="No",IF(H44<=150000,H44,150000),0) -> 0
A45: xiv) | B45: 80-G | C45: (Donations towards Social Causes) | G45: Rs. | I45: Rs. | J45: =IF($J$5="No",H45,0) -> 0 | K45: Exclu.
A46: xv) | B46: 80-GG | C46: (Deduction for House Rent Paid where HRA is not received) | G46: Rs. | I46: Rs. | J46: =IF($J$5="No",IF(H46<=60000,H46,60000),0) -> 0 | K46: Exclu.
A47: xvi) | B47: 80 GGA | C47: (Donations for Scientific Research/Rural development) | G47: Rs. | I47: Rs. | J47: =IF($J$5="No",H47,0) -> 0 | K47: Exclu.
A48: xvii) | B48: 80 GGC | C48: (Donations made to political parties) | G48: Rs. | I48: Rs. | J48: =IF($J$5="No",IF(H48<=150000,H48,150000),0) -> 0 | K48: Inc.
A49: xviii) | B49: 80 QQB | C49: (Royalty Income for Authors) | G49: Rs. | I49: Rs. | J49: =IF($J$5="No",IF(H49<=300000,H49,300000),0) -> 0 | K49: Exclu.
A50: xix) | B50: 80 RRB | C50: (Deduction in respect of royalty on patents) | G50: Rs. | I50: Rs. | J50: 0 | K50: Exclu.
A51: xx) | B51: 80-TTA | C51: (Interest income of SB A/C upto 10000 & 50000 for Sr. Citi.) | G51: Rs. | I51: Rs. | J51: =IF($J$5="No",IF(H51<=10000,H51,10000),0) -> 0 | K51: Exclu.
A52: xxi) | B52: 80-U | C52: (Deduction in case of a person with disability) | G52: Rs. | I52: Rs. | J52: =IF($J$5="No",IF(H52<=125000,H52,125000),0) -> 0 | K52: Exclu.
B53: TOTAL…………………………………………… | F53: =SUM(J21:J34,J48) -> 171600 | G53: Rs. | H53: =SUM(H21:H52) -> 181600 | I53: Rs. | J53: =IF(J5="No",F54,H54) -> 160000
A54: 8 | B54: a)Net Taxable Income(6-7) | F54: =IF(F53<=150000,(F53+J35+J36+J37+J38+J39+J40+J41+J42+J45+J46+J47+J49+J50+J51+J52+J43+J44),(150000+J35+J36+J37+J38+J39+J40+J41+J42+J43+J44+J45+J46+J47+J49+J50+J51+J52)) -> 160000 | H54: =J36 -> 0 | I54: Rs. | J54: =J19-J53 -> 770820
B55: b)Rounded Off to the multiple of ten rupees | I55: Rs. | J55: =IFERROR(MROUND(J54,10),0) -> 770820
A56: 9 | B56: Income Tax→ | C56: =IF(J5="No","Upto Rs. 250000/-…………………………NIL","Upto Rs. 400000/-…………………………NIL") -> Upto Rs. 250000/-…………………………NIL | F56: =IF(J5="No","Rs.250001/- to 500000/-……..@,5%","Rs.400001/- to 800000/-……..@5%") -> Rs.250001/- to 500000/-……..@,5% | I56: Rs. | J56: =IF(J5="No",M25,N25) -> 66664
C57: =IF(J5="No","Rs.500001/- to 1000000/-……..@,20%","Rs.800001/- to 1200000/-……..@10%") -> Rs.500001/- to 1000000/-……..@,20% | F57: =IF(J5="No","Above Rs 10,0000…..@,30%","Rs.12L/- to 16L/-.@15%, Rs 16L to 20L.@20% & 25%@30% ") -> Above Rs 10,0000…..@,30%
B58: =IF(J5="No","Deduction u/s 87a if taxable income under 5 lac (Max. 12500)","Deduction u/s 87a if taxable income under 12 lac (Max. 60000)") -> Deduction u/s 87a if taxable income under 5 lac (Max. 12500) | H58: =IF(J55>500000,0,IF(J56<=12500,J56,12500)) -> 0 | I58: Rs. | J58: =IF(J5="No",H58,K58) -> 0 | K58: =IF(J55>1200000,0,IF(J56<=60000,J56,60000)) -> 60000
B59: TOTAL TAX…………………………………………………………………………… | J59: =ROUND(J56-J58,0) -> 66664
A60: 10 | B60: Add Surcharge @ at S No8 | H60: =IF(J54>=5000000,J56*10%,IF(J54>10000000,J56*15%,IF(J54>20000000,J56*25%,IF(J54>50000000,J56*37%,0)))) -> 0 | I60: Rs. | J60: =IF(J5="No",H60,0) -> 0
A61: 11 | B61: Total Tax Payable (9+10) | I61: Rs. | J61: =SUM(J59:J60) -> 66664
A62: 12 | B62: Health & Education Cess @ 4% on Total Tax at S. No. 11 (New) | I62: Rs. | J62: =ROUND(J61*4%,0) -> 2667
A63: 14 | B63: Net Tax Payable(11+12) | E63: (Enter Relief U/S 89 U here)→ | I63: Rs. | J63: =SUM(J61:J62)-(H63) -> 69331
A64: 15 | B64: Tax Already Paid | E64: (If any other tax paid in 26 AS, add→ | I64: Rs. | J64: =SUM(FILL_SALARY_DETAIL!R8:R23)+H64 -> 30000
A65: 16 | B65: Tax Status | F65: =IF(J63>J64,"Balance Tax Payable →",IF(J64>J63,"Tax Refund →","No Tax Required →")) -> Balance Tax Payable → | I65: Rs. | J65: =(IF(J63>J64,J63-J64,IF(J64>J63,J64-J63,0))) -> 39331
F66: =EnglishNumber(J65) -> Thirty-Nine Thousand Three Hundred Thirty-One
A67: DECLARATION: I undertake to supply the documentry proof of deductions claimed above.I shall be personally responsible
A68: to file return with income tax deptt,as required under the law & also be liable to face consequence for wrong information
A69: supplied & income concealed if any | H69: sign
B70: Date: | C70: =TODAY() -> 2025-12-27 | H70: =D3 -> Name
D71: www.teachershelp.in | H71: =FILL_SALARY_DETAIL!G1 -> 0

Sheet Sheet1
A1: Available Exemptions/ Deductions | B1: Old Tax Regime | C1: New Tax Regime | I1: Income Tax Slabs | J1: Tax Rates (in % p.a.) | N1: old
A2: Standard Deductions of Rs. 50,000 | B2: YES | C2: YES | I2: Up to Rs. 3 lakhs | J2: NIL | N2: 0-2.5L | O2: 0
A3: Employment/ Professional Tax u/ Sec 10(5) | B3: YES | C3: NO | H3: 15000 | I3: Rs. 3 lakhs- Rs. 6 lakhs | J3: 0.05 | K3: 87A releif | N3: 2.5-5 | O3: 5 | P3: 87A rebate upto 5l
A4: House Rent Allowance (HRA) u/ Sec 10(13A) | B4: YES | C4: NO | G4: 17500 | H4: 30000 | I4: Rs. 6 lakhs- Rs. 9 lakhs | J4: 0.1 | K4: 7 lack u/s 87 | N4: 5.-10l | O4: 20
A5: Exemptions for Free Food & Beverages through Vouchers/ Food Coupons | B5: YES | C5: NO | H5: 45000 | I5: Rs. 9 lakhs- Rs. 12 lakhs | J5: 0.15 | N5: 10+ | O5: 30
A6: Deductions of Up to Rs. 1.5 lakhs u/ Chapter VIA towards investments like u/ Sec 80C, 80CCC, 80CCD, 80DD, 80DDB, 80E, 80EE, 80EEA, 80G, etc. | B6: YES | C6: NO | H6: 60000 | I6: Rs. 12 lakhs- Rs. 15 lakhs | J6: 0.2
A7: Deductions u/ Sec 80CCD(2) for Employer’s Contribution to Employee NPS Accounts | B7: YES | C7: YES | I7: Rs. 15 lakhs & Above | J7: 0.3
A8: Deductions u/Sec 80CCD(1B) of Up to Rs. 50,000 | B8: YES | C8: NO | I8: Education Cess | J8: 4% p.a. of Taxable Income
A9: Medical Insurance Premium u/Sec 80D | B9: YES | C9: NO
A10: Interest on Home Loan for Self-Occupied/ Vacant Property | B10: YES | C10: NO
